bitfinex/quotes_BTCUSD_20240911
["timestamp","ask_amount","ask_price","bid_price","bid_amount"]
[1726095719006,1.07289316,57555.0,57554.0,0.018638]
[1726095719683,1.09817877,57555.0,57554.0,0.018638]
[1726095720202,0.002,57555.0,57554.0,0.096538]
[1726095720425,0.002,57555.0,57554.0,0.159338]
[1726095720664,0.175746,57555.0,57554.0,0.159338]
[1726095720906,0.175746,57555.0,57554.0,0.21445692]
[1726095723496,0.2280688,57555.0,57554.0,0.21445692]
[1726095723731,0.0261268,57555.0,57554.0,0.38820592]
[1726095724193,0.0261268,57555.0,57554.0,0.73570492]
[1726095724433,0.002,57555.0,57554.0,0.73570492]
[1726095724665,0.02612901,57555.0,57554.0,0.73570492]
[1726095724893,0.02612903,57555.0,57554.0,0.21445692]
[1726095725146,0.02612903,57555.0,57554.0,0.38820592]
[1726095725843,0.02612903,57555.0,57554.0,0.73570492]
[1726095726289,0.02612903,57555.0,57554.0,0.21445692]
[1726095729999,0.02612903,57555.0,57554.0,0.38820592]
[1726095730711,0.02612903,57555.0,57554.0,0.21445692]
[1726095731692,0.02612903,57555.0,57554.0,0.73570492]
[1726095731693,0.02615918,57555.0,57554.0,0.73570492]
[1726095731912,0.02615918,57555.0,57554.0,0.38820592]
[1726095735872,0.02613698,57555.0,57554.0,0.21445692]
[1726095736090,0.19988298,57555.0,57554.0,0.21445692]
[1726095736309,0.02613698,57555.0,57554.0,0.21445692]
[1726095737428,0.23142591,57555.0,57554.0,0.21445692]
[1726095737942,0.57891891,57555.0,57554.0,0.21445692]
[1726095738170,1.07408345,57555.0,57554.0,0.07375692]
[1726095738629,1.07408345,57555.0,57554.0,0.018638]
[1726095739081,1.05194647,57555.0,57554.0,0.018638]
[1726095739327,1.07400094,57555.0,57554.0,0.018638]
[1726095739567,1.07600094,57555.0,57554.0,0.018638]
[1726095739835,1.43299394,57555.0,57554.0,0.018638]
[1726095740054,1.48284459,57555.0,57554.0,0.018638]
[1726095740282,1.21624819,57555.0,57554.0,0.018638]
[1726095740516,1.24417352,57555.0,57554.0,0.018638]
[1726095740755,1.59066652,57555.0,57554.0,0.010638]
[1726095740973,0.97556245,57555.0,57554.0,0.001638]
[1726095741196,1.10000655,57555.0,57554.0,0.001638]
[1726095741425,1.18278253,57555.0,57554.0,0.001638]
[1726095742092,1.17978253,57555.0,57554.0,0.001638]
[1726095742327,1.18286506,57555.0,57554.0,0.001638]
[1726095742568,1.28094915,57555.0,57554.0,0.001638]
[1726095742776,1.27594915,57555.0,57554.0,0.001638]
[1726095743057,1.28094915,57555.0,57554.0,0.001638]
[1726095743540,1.4738689,57555.0,57554.0,0.001638]
[1726095743760,1.4728689,57555.0,57554.0,0.001638]
[1726095744173,1.4758689,57555.0,57554.0,0.001638]
[1726095744396,1.57968025,57555.0,57554.0,0.001638]
[1726095744611,1.58268025,57555.0,57554.0,0.001638]
[1726095744831,1.66458025,57555.0,57554.0,0.001638]
[1726095745059,1.66458025,57555.0,57551.0,0.001638]
[1726095745060,0.898777,57552.0,57551.0,0.001638]
[1726095745321,0.898777,57552.0,57550.0,0.0037747]
[1726095745322,1.034192,57551.0,57550.0,0.0037747]
[1726095746945,2.52911236,57551.0,57550.0,0.0037747]
[1726095747181,2.54211236,57551.0,57550.0,0.0047747]
[1726095747403,2.69782939,57551.0,57550.0,0.0047747]
[1726095747626,2.54211236,57551.0,57550.0,0.0047747]
[1726095747850,2.55509766,57551.0,57550.0,0.0057747]
[1726095748121,2.50994125,57551.0,57550.0,0.0047747]
[1726095748766,2.52594125,57551.0,57550.0,0.0057747]
[1726095748991,2.45869269,57551.0,57550.0,0.0057747]
[1726095749223,1.59724051,57551.0,57550.0,0.0057747]
[1726095749451,1.78546059,57551.0,57550.0,0.0047747]
[1726095749903,1.79746059,57551.0,57550.0,0.0047747]
[1726095750345,1.86521111,57551.0,57550.0,0.0047747]
[1726095751951,1.66830606,57551.0,57550.0,0.0047747]
[1726095752186,1.86564361,57551.0,57550.0,0.0047747]
[1726095752440,2.21316692,57551.0,57550.0,0.0047747]
[1726095752684,2.58917204,57551.0,57550.0,0.0064127]
[1726095752921,2.61256062,57551.0,57550.0,0.0064127]
[1726095753567,2.56192506,57551.0,57550.0,0.0064127]
[1726095754882,2.57142506,57551.0,57550.0,0.0064127]
[1726095755074,1.308418,57546.0,57545.0,0.001636]
[1726095755304,1.73176142,57546.0,57545.0,0.001636]
[1726095755761,1.70797563,57546.0,57545.0,0.001636]
[1726095755987,1.7317446,57546.0,57545.0,0.001636]
[1726095756228,1.71497563,57546.0,57545.0,0.002636]
[1726095756458,1.54351495,57546.0,57545.0,0.003636]
[1726095756680,1.74373503,57546.0,57545.0,0.003636]
[1726095756902,1.91990458,57546.0,57545.0,0.003636]
[1726095757352,1.94715194,57546.0,57545.0,0.003636]
[1726095758737,1.94915194,57546.0,57545.0,0.003636]
[1726095759686,0.26234431,57546.0,57545.0,0.143936]
[1726095759949,0.0377594,57546.0,57545.0,0.143936]
[1726095760189,0.0377594,57546.0,57545.0,1.06814668]
[1726095760458,0.0377594,57546.0,57545.0,0.72059268]
[1726095760716,0.0377594,57546.0,57545.0,0.37303868]
[1726095760959,0.0237594,57546.0,57545.0,0.37103868]
[1726095761212,0.0377594,57546.0,57545.0,0.71959268]
[1726095761677,0.0307594,57546.0,57545.0,0.71859268]
[1726095761918,0.0317594,57546.0,57545.0,0.72659268]
[1726095762390,0.0307594,57546.0,57545.0,0.71859268]
[1726095762657,0.0317594,57546.0,57545.0,0.72459268]
[1726095762893,0.173752,57554.0,57545.0,0.72459268]
[1726095762894,0.05199805,57558.0,57556.0,0.66153]
[1726095763138,0.51989914,57558.0,57557.0,0.521221]
[1726095763361,0.52409805,57560.0,57557.0,0.40277319]
[1726095763645,0.52409805,57560.0,57559.0,0.173734]
[1726095764132,0.52409805,57560.0,57559.0,0.22902061]
[1726095764364,0.5240818,57560.0,57559.0,0.05528661]
[1726095764620,0.4721,57560.0,57559.0,0.05528661]
[1726095764885,0.4721,57560.0,57556.0,0.1403]
[1726095764886,0.5240818,57560.0,57556.0,0.1403]
[1726095765143,0.37596008,57558.0,57556.0,0.1403]
[1726095765380,0.42793926,57558.0,57556.0,0.1403]
[1726095765848,0.25419943,57558.0,57556.0,0.1403]
[1726095766593,0.25419957,57558.0,57556.0,0.1403]
[1726095766831,0.05197949,57558.0,57557.0,0.92399419]
[1726095767076,0.52507949,57560.0,57559.0,0.409769]
[1726095767317,0.4731,57560.0,57559.0,0.666603]
[1726095767547,0.4721,57560.0,57559.0,1.06930892]
[1726095768240,0.05197949,57563.0,57559.0,0.54810592]
[1726095768467,0.05197949,57563.0,57561.0,0.173726]
[1726095768975,0.05197949,57563.0,57562.0,0.05522855]
[1726095769430,0.05197949,57563.0,57562.0,0.22895355]
[1726095769648,0.08003856,57564.0,57562.0,0.22895355]
[1726095770647,0.001,57563.0,57562.0,0.23695355]
[1726095771060,0.08003856,57564.0,57562.0,0.22895355]
[1726095771965,0.001,57563.0,57562.0,0.23495355]
[1726095772443,0.001,57563.0,57562.0,0.24095355]
[1726095773127,0.001,57563.0,57562.0,0.23495355]
[1726095773594,0.002,57563.0,57562.0,0.24295355]
[1726095773892,0.001,57563.0,57562.0,0.23695355]
[1726095774593,0.001,57563.0,57562.0,0.24195355]
[1726095775043,0.001,57563.0,57562.0,0.23695355]
[1726095775269,0.002,57563.0,57562.0,0.24295355]
[1726095777384,0.00282,57563.0,57562.0,0.24295355]
[1726095777623,0.00282,57563.0,57562.0,1.08125555]
[1726095778573,0.00282,57563.0,57562.0,1.42870655]
[1726095779281,0.00282,57563.0,57562.0,0.38635355]
[1726095780213,0.00282,57563.0,57562.0,0.21262855]
[1726095780445,0.0205552,57563.0,57562.0,0.21262855]
[1726095780925,0.00282,57563.0,57562.0,0.21262855]
[1726095781410,0.00282,57563.0,57562.0,0.06922855]
[1726095781411,0.176542,57563.0,57562.0,0.06922855]
[1726095783464,0.523987,57563.0,57562.0,0.06922855]
[1726095784090,0.523987,57563.0,57562.0,0.014]
[1726095784777,1.02056607,57563.0,57562.0,0.014]
[1726095784995,1.52195191,57563.0,57562.0,0.014]
[1726095785219,1.7711133,57563.0,57562.0,0.014]
[1726095785464,1.64122319,57563.0,57562.0,0.014]
[1726095785719,1.09863735,57563.0,57562.0,0.014]
[1726095785936,1.43068761,57563.0,57562.0,0.014]
[1726095786156,1.32809664,57563.0,57562.0,0.014]
[1726095786403,1.45792682,57563.0,57562.0,0.014]
[1726095787083,1.80737182,57563.0,57562.0,0.014]
[1726095789514,1.98272312,57563.0,57562.0,0.014]
[1726095789982,2.04272312,57563.0,57562.0,0.014]
[1726095790238,1.9128779,57563.0,57562.0,0.014]
[1726095791089,1.9540779,57563.0,57562.0,0.014]
[1726095792244,0.173752,57553.0,57552.0,0.1488]
[1726095792496,0.77542582,57553.0,57552.0,0.1488]
[1726095792713,1.12293082,57553.0,57552.0,0.20402354]
[1726095792929,1.12293082,57553.0,57552.0,0.1488]
[1726095793176,1.1489052,57553.0,57552.0,0.1488]
[1726095793653,1.1499052,57553.0,57552.0,0.1618]
[1726095794103,1.15092509,57553.0,57552.0,0.1708]
[1726095794360,1.15092518,57553.0,57552.0,0.1708]
[1726095794573,1.07298208,57553.0,57552.0,0.1708]
[1726095795016,1.07298208,57553.0,57552.0,0.022]
[1726095795464,1.44948708,57553.0,57552.0,0.009]
[1726095795725,1.44948708,57553.0,57549.0,0.0657]
[1726095795726,0.870807,57550.0,57549.0,0.0657]
[1726095795945,0.870837,57548.0,57547.0,0.0784]
[1726095796183,0.870837,57548.0,57546.0,0.06364]
[1726095796184,0.521313,57547.0,57546.0,0.06364]
[1726095796436,0.2257444,57548.0,57546.0,0.06364]
[1726095796675,0.173769,57548.0,57546.0,0.06364]
[1726095796918,0.173771,57547.0,57546.0,0.06364]
[1726095798617,0.173771,57547.0,57546.0,0.06664]
[1726095798841,0.173771,57547.0,57546.0,0.06564]
[1726095799317,0.174771,57547.0,57546.0,0.07064]
[1726095799575,0.174771,57547.0,57546.0,0.06864]
[1726095799798,0.175771,57547.0,57546.0,0.07064]
[1726095800721,0.98133112,57547.0,57546.0,0.07064]
[1726095801012,0.98133112,57547.0,57546.0,0.00864]
[1726095801013,0.870855,57547.0,57546.0,0.00864]
[1726095801245,0.872855,57547.0,57546.0,0.00864]
[1726095801502,1.37409515,57547.0,57546.0,0.00864]
[1726095801734,1.79183283,57547.0,57546.0,0.00864]
[1726095802205,1.92180017,57547.0,57546.0,0.00864]
[1726095802679,1.95380017,57547.0,57546.0,0.00864]
[1726095802903,1.86503283,57547.0,57546.0,0.00864]
[1726095803574,1.86403283,57547.0,57546.0,0.00664]
[1726095803794,2.13601772,57547.0,57546.0,0.00664]
[1726095804015,1.248418,57546.0,57545.0,0.0015562]
[1726095804228,1.71544909,57546.0,57545.0,0.0015562]
[1726095804950,1.89161864,57546.0,57545.0,0.0015562]
[1726095805418,1.77566048,57546.0,57545.0,0.0015562]
[1726095805649,1.95161024,57546.0,57545.0,0.0025562]
[1726095805879,1.95761024,57546.0,57545.0,0.0025562]
[1726095806114,1.98485849,57546.0,57545.0,0.0025562]
[1726095806358,1.86890149,57546.0,57545.0,0.0025562]
[1726095807033,1.87490149,57546.0,57545.0,0.0025562]
[1726095808192,1.718882,57546.0,57545.0,0.0025562]
[1726095808924,1.54271245,57546.0,57545.0,0.0025562]
[1726095811675,1.54170127,57546.0,57545.0,0.0025562]
[1726095813708,1.5416831,57546.0,57545.0,0.0025562]
[1726095814618,1.5425031,57546.0,57545.0,0.0025562]
[1726095815598,1.5405031,57546.0,57545.0,0.0025562]
[1726095815842,1.69543628,57546.0,57545.0,0.0025562]
[1726095816080,1.69743628,57546.0,57545.0,0.0025562]
[1726095816317,1.67034501,57546.0,57545.0,0.0683562]
[1726095816795,1.5405031,57546.0,57545.0,0.0683562]
[1726095818144,1.64438062,57546.0,57545.0,0.0683562]
[1726095818574,1.5405031,57546.0,57545.0,0.0683562]
[1726095820481,1.71667265,57546.0,57545.0,0.0683562]
[1726095821168,1.84651456,57546.0,57545.0,0.0683562]
[1726095821941,1.49896656,57546.0,57545.0,0.0683562]
[1726095822178,1.49896656,57546.0,57545.0,0.1437562]
[1726095822179,0.09201424,57546.0,57545.0,0.1437562]
[1726095822419,0.01282,57546.0,57545.0,0.1437562]
[1726095822649,0.01282,57546.0,57545.0,0.19914556]
[1726095825585,0.06476599,57546.0,57545.0,0.19914556]
[1726095826806,0.06481285,57546.0,57545.0,0.19914556]
[1726095828099,0.01282,57546.0,57545.0,0.19914556]
[1726095831631,0.01282,57546.0,57545.0,0.18332003]
[1726095834527,0.186594,57546.0,57545.0,0.18332003]
[1726095834723,0.38216014,57546.0,57545.0,0.18332003]
[1726095834949,0.50620274,57546.0,57545.0,0.18332003]
[1726095835694,0.38216014,57546.0,57545.0,0.18332003]
[1726095836118,0.38216014,57546.0,57545.0,0.1437562]
[1726095837331,0.72970814,57546.0,57545.0,0.1437562]
[1726095837730,0.72970814,57546.0,57545.0,0.18329783]
[1726095838764,1.07725614,57546.0,57545.0,0.18329783]
[1726095838988,1.23925574,57546.0,57545.0,0.18329783]
[1726095839213,1.23925574,57546.0,57545.0,0.1437562]
[1726095841055,1.07725614,57546.0,57545.0,0.1437562]
[1726095841552,1.09939214,57546.0,57545.0,0.1437562]
[1726095842949,1.07725614,57546.0,57545.0,0.1437562]
[1726095843180,1.25562352,57546.0,57545.0,0.1437562]
[1726095846712,1.25762352,57546.0,57545.0,0.0683562]
[1726095846936,1.25562352,57546.0,57545.0,0.0683562]
[1726095847173,1.43179307,57546.0,57545.0,0.0683562]
[1726095848108,1.43179307,57546.0,57545.0,0.0025562]
[1726095848350,1.55311499,57546.0,57545.0,0.0025562]
[1726095848841,1.90066299,57546.0,57545.0,0.0025562]
[1726095849084,1.90266299,57546.0,57545.0,0.0025562]
[1726095849765,1.72649344,57546.0,57545.0,0.0025562]
[1726095850064,1.87443477,57546.0,57545.0,0.0025562]
[1726095850288,1.96629123,57546.0,57545.0,0.0025562]
[1726095850512,2.14175361,57546.0,57545.0,0.0025562]
[1726095850735,1.96627773,57546.0,57545.0,0.0025562]
[1726095851217,1.96584877,57546.0,57545.0,0.0025562]
[1726095853245,1.94369475,57546.0,57545.0,0.0025562]
[1726095853476,1.96589024,57546.0,57545.0,0.0025562]
[1726095853955,1.92269024,57546.0,57545.0,0.0025562]
[1726095854149,1.92469024,57546.0,57545.0,0.0025562]
[1726095855971,1.95217927,57546.0,57545.0,0.0025562]
[1726095856661,1.92998378,57546.0,57545.0,0.0025562]
[1726095856877,1.95216721,57546.0,57545.0,0.0025562]
[1726095858753,1.99336721,57546.0,57545.0,0.0025562]
[1726095859924,1.97118378,57546.0,57545.0,0.0025562]
[1726095860180,1.95224008,57546.0,57545.0,0.0025562]
[1726095860401,1.92998378,57546.0,57545.0,0.0025562]
[1726095860628,2.12840963,57546.0,57545.0,0.0025562]
[1726095860820,1.95224008,57546.0,57545.0,0.0025562]
[1726095861045,1.95206684,57546.0,57545.0,0.0025562]
[1726095861966,1.95006684,57546.0,57545.0,0.0025562]
[1726095862672,1.57251884,57546.0,57545.0,0.0664562]
[1726095863179,1.74853732,57546.0,57545.0,0.0664562]
[1726095866422,1.72628102,57546.0,57545.0,0.0664562]
[1726095866724,1.77849397,57546.0,57545.0,0.0664562]
[1726095867200,1.75124544,57546.0,57545.0,0.0664562]
[1726095869743,1.72903249,57546.0,57545.0,0.0664562]
[1726095869965,1.75628009,57546.0,57545.0,0.0664562]
[1726095870210,1.77852385,57546.0,57545.0,0.0664562]
[1726095870863,1.77930698,57546.0,57545.0,0.0664562]
[1726095871100,0.58307708,57546.0,57545.0,0.3165332]
[1726095871329,0.58307708,57546.0,57545.0,1.0512158]
[1726095871330,0.23094262,57546.0,57545.0,1.0512158]
[1726095871544,0.36130733,57546.0,57545.0,1.0512158]
[1726095871765,0.36130733,57546.0,57545.0,1.3987698]
[1726095871766,0.33523259,57546.0,57545.0,1.3987698]
[1726095872209,0.13335373,57546.0,57545.0,1.3987698]
[1726095872428,0.02906376,57546.0,57545.0,1.4007698]
[1726095873147,0.02306376,57546.0,57545.0,1.3997698]
[1726095873363,0.00082,57546.0,57545.0,1.4017698]
[1726095873582,0.00082,57546.0,57545.0,1.3997698]
[1726095873802,0.00082,57546.0,57545.0,1.3977698]
[1726095874026,0.00182,57546.0,57545.0,1.3997698]
[1726095874249,0.00282,57546.0,57545.0,1.4027698]
[1726095875129,0.02724193,57551.0,57550.0,1.36063]
[1726095875380,0.02261893,57551.0,57550.0,1.36063]
[1726095875613,0.02261893,57551.0,57550.0,1.40017895]
[1726095876522,0.05214518,57554.0,57553.0,0.658657]
[1726095877003,0.07466382,57554.0,57553.0,0.69819997]
[1726095877687,0.07566382,57554.0,57553.0,0.70019997]
[1726095877947,0.07566382,57554.0,57553.0,1.04770497]
[1726095878214,0.02351864,57554.0,57553.0,1.39520997]
[1726095878435,0.001,57554.0,57553.0,1.39520997]
[1726095878659,0.001,57554.0,57553.0,1.39920997]
[1726095885755,0.00182,57554.0,57553.0,1.39920997]
[1726095888809,0.00182,57554.0,57553.0,1.46884997]
[1726095890655,0.00182,57554.0,57553.0,0.77383997]
[1726095890890,0.02431205,57554.0,57553.0,1.12134497]
[1726095892738,0.02431205,57554.0,57553.0,0.42633497]
[1726095892941,0.02431205,57554.0,57553.0,0.70419997]
[1726095893201,0.02431205,57554.0,57553.0,0.77384497]
[1726095893924,0.02431205,57554.0,57553.0,1.12134997]
[1726095894161,0.0244081,57554.0,57553.0,1.12134997]
[1726095895032,0.00182,57554.0,57553.0,1.12134997]
[1726095896060,0.02438285,57554.0,57553.0,1.12134997]
[1726095896708,0.02442587,57554.0,57553.0,1.12134997]
[1726095898644,0.02442587,57554.0,57553.0,0.77384497]
[1726095900368,0.02442587,57554.0,57553.0,1.12134997]
[1726095901307,0.00182,57554.0,57553.0,1.12134997]
[1726095902936,0.02448435,57554.0,57553.0,1.12134997]
[1726095903305,0.00182,57554.0,57553.0,1.12134997]
[1726095907454,0.02447656,57554.0,57553.0,1.12134997]
[1726095907906,0.00182,57554.0,57553.0,1.12134997]
[1726095909491,0.024491,57554.0,57553.0,1.12134997]
[1726095911772,0.02449925,57554.0,57553.0,1.12134997]
[1726095913395,0.02449925,57554.0,57553.0,1.46885497]
[1726095914472,0.02449925,57554.0,57553.0,1.46485497]
[1726095915149,0.00182,57554.0,57553.0,1.46485497]
[1726095915639,0.02449271,57554.0,57553.0,1.46885497]
[1726095915878,0.02449274,57554.0,57553.0,1.46885497]
[1726095916352,0.02349274,57554.0,57553.0,1.46285497]
[1726095916615,0.02449274,57554.0,57553.0,1.47585497]
[1726095916853,0.02449274,57554.0,57553.0,1.47085497]
[1726095917324,0.02549274,57554.0,57553.0,1.48485497]
[1726095918520,0.0775293,57554.0,57553.0,1.48485497]
[1726095918804,0.05485656,57554.0,57553.0,1.48485497]
[1726095919060,0.07749438,57554.0,57553.0,1.48485497]
[1726095921167,0.07762919,57554.0,57553.0,1.48485497]
[1726095921855,0.07662919,57554.0,57553.0,2.10030015]
[1726095922092,0.00282,57554.0,57553.0,2.10830015]
[1726095922339,0.00282,57554.0,57553.0,2.13130015]
[1726095922845,0.00182,57554.0,57553.0,2.46480515]
[1726095923087,0.00182,57554.0,57553.0,2.56480515]
[1726095923088,0.00282,57554.0,57553.0,2.56480515]
[1726095923330,0.000819,57562.0,57561.0,1.859599]
[1726095923568,0.000819,57562.0,57561.0,2.31932301]
[1726095923799,0.000819,57562.0,57561.0,2.66678001]
[1726095925908,0.000819,57562.0,57561.0,2.67858131]
[1726095926145,0.00049769,57562.0,57561.0,3.06087831]
[1726095926414,0.00149769,57562.0,57561.0,3.09087831]
[1726095926631,0.00149769,57562.0,57561.0,3.07687831]
[1726095927111,0.00149769,57562.0,57561.0,3.09087831]
[1726095927356,0.00082,57563.0,57562.0,2.456331]
[1726095927591,0.09,57570.0,57569.0,1.279013]
[1726095927830,0.09,57570.0,57569.0,2.56518018]
[1726095928079,0.09,57570.0,57569.0,2.72787478]
[1726095928310,0.09,57570.0,57569.0,3.10528378]
[1726095929508,0.091,57570.0,57569.0,3.15412378]
[1726095929740,0.091,57570.0,57569.0,2.80671478]
[1726095929955,0.091,57570.0,57569.0,2.81676996]
[1726095930644,0.091,57570.0,57569.0,2.83076996]
[1726095930860,0.09,57570.0,57569.0,2.80276996]
[1726095931089,0.09,57570.0,57569.0,3.16617896]
[1726095931317,0.09,57570.0,57569.0,3.18017896]
[1726095931560,0.4721,57585.0,57584.0,1.215613]
[1726095931825,0.02722544,57589.0,57588.0,0.868235]
[1726095932295,0.02722544,57589.0,57588.0,0.89660203]
[1726095932526,0.1415,57589.0,57588.0,0.54930803]
[1726095934358,0.1415,57589.0,57588.0,0.56230803]
[1726095937347,0.1415,57589.0,57588.0,0.04136703]
[1726095938043,0.1415,57589.0,57588.0,0.21501403]
[1726095938724,0.1415,57589.0,57588.0,0.04136703]
[1726095938725,0.33787443,57589.0,57588.0,0.04136703]
[1726095938951,0.68516243,57589.0,57588.0,0.04136703]
[1726095939175,0.68516243,57589.0,57588.0,0.013]
[1726095939651,1.03242334,57589.0,57588.0,0.013]
[1726095940321,1.09512999,57589.0,57588.0,0.013]
[1726095940967,1.03242334,57589.0,57588.0,0.013]
[1726095942351,0.68513534,57589.0,57588.0,0.013]
[1726095944387,0.19634734,57589.0,57588.0,0.013]
[1726095944816,0.54363534,57589.0,57588.0,0.013]
[1726095945040,0.54363534,57589.0,57588.0,0.04135992]
[1726095945256,0.02270334,57589.0,57588.0,0.21500692]
[1726095945480,0.02270334,57589.0,57588.0,0.90959492]
[1726095945708,0.0037747,57593.0,57592.0,0.520905]
[1726095945941,0.02659342,57593.0,57592.0,0.520905]
[1726095946157,0.02659342,57593.0,57592.0,0.5492599]
[1726095946383,0.0037747,57593.0,57592.0,0.9582299]
[1726095946842,0.02662105,57593.0,57592.0,0.9582299]
[1726095947091,0.02662105,57593.0,57592.0,0.9612299]
[1726095947956,0.02662105,57593.0,57592.0,0.9642299]
[1726095949906,0.02662105,57593.0,57592.0,0.6169599]
[1726095950177,0.0037747,57593.0,57592.0,0.6169599]
[1726095951321,0.0037747,57593.0,57592.0,0.9871009]
[1726095951322,0.02664601,57593.0,57592.0,0.9871009]
[1726095954703,0.02664358,57593.0,57592.0,0.9871009]
[1726095956357,0.02664358,57593.0,57592.0,0.6398309]
[1726095956585,0.02664358,57593.0,57592.0,0.2308609]
[1726095956821,0.02664358,57593.0,57592.0,0.2079899]
[1726095957285,0.02664358,57593.0,57592.0,0.5552599]
[1726095957286,0.0037747,57593.0,57592.0,0.5552599]
[1726095957537,0.02657655,57593.0,57592.0,0.5552599]
[1726095958330,0.02739555,57593.0,57592.0,0.5552599]
[1726095959527,0.02739555,57593.0,57592.0,0.2079899]
[1726095960014,0.02739555,57593.0,57592.0,0.0343549]
[1726095960251,1.28958373,57593.0,57592.0,0.0343549]
[1726095960497,1.2376976,57593.0,57592.0,0.0343549]
[1726095960748,1.2376976,57593.0,57592.0,0.006]
[1726095960989,1.6169616,57593.0,57592.0,0.006]
[1726095961211,1.89473314,57593.0,57592.0,0.006]
[1726095961677,2.04367769,57593.0,57592.0,0.006]
[1726095962174,2.10367769,57593.0,57592.0,0.006]
[1726095962447,0.521058,57575.0,57574.0,0.069617]
[1726095962682,0.521058,57575.0,57564.0,0.069629]
[1726095962683,0.173701,57570.0,57564.0,0.069629]
[1726095962915,0.75009068,57570.0,57569.0,0.000638]
[1726095963396,1.14943785,57570.0,57569.0,0.000638]
[1726095963626,1.17542523,57570.0,57569.0,0.000638]
[1726095963847,1.42530468,57570.0,57569.0,0.000638]
[1726095964079,1.55519059,57570.0,57569.0,0.000638]
[1726095964326,1.49789528,57570.0,57569.0,0.003638]
[1726095964840,0.8223479,57570.0,57569.0,0.003638]
[1726095965066,0.90028369,57570.0,57569.0,0.003638]
[1726095965294,0.8253479,57570.0,57569.0,0.003638]
[1726095965514,0.8253479,57570.0,57569.0,0.000638]
[1726095965515,0.90328657,57570.0,57569.0,0.000638]
[1726095965741,0.8223479,57570.0,57569.0,0.000638]
[1726095965991,0.8273479,57570.0,57569.0,0.000638]
[1726095966229,0.8323479,57570.0,57569.0,0.000638]
[1726095966474,0.8273479,57570.0,57569.0,0.000638]
[1726095966709,0.90828657,57570.0,57569.0,0.000638]
[1726095966935,0.90528657,57570.0,57569.0,0.000638]
[1726095967198,0.90028657,57570.0,57569.0,0.000638]
[1726095967436,0.90528657,57570.0,57569.0,0.000638]
[1726095967673,0.9052015,57570.0,57569.0,0.000638]
[1726095969299,0.83026283,57570.0,57569.0,0.000638]
[1726095969519,0.83326283,57570.0,57569.0,0.000638]
[1726095969742,1.02082317,57570.0,57569.0,0.000638]
[1726095969966,1.37222617,57570.0,57569.0,0.000638]
[1726095970192,1.25559448,57570.0,57569.0,0.000638]
[1726095970413,0.90819148,57570.0,57569.0,0.000638]
[1726095970634,0.90419148,57570.0,57569.0,0.000638]
[1726095970861,1.25152575,57570.0,57569.0,0.000638]
[1726095971089,1.25452575,57570.0,57569.0,0.000638]
[1726095971531,0.90712275,57570.0,57569.0,0.000638]
[1726095971753,0.8321941,57570.0,57569.0,0.000638]
[1726095971974,1.1795971,57570.0,57569.0,0.000638]
[1726095972196,1.22852806,57570.0,57569.0,0.000638]
[1726095972423,1.15192806,57570.0,57569.0,0.000638]
[1726095972896,0.80452506,57570.0,57569.0,0.000638]
[1726095973122,0.80852506,57570.0,57569.0,0.000638]
[1726095973351,0.80852191,57570.0,57569.0,0.000638]
[1726095973586,1.15192491,57570.0,57569.0,0.000638]
[1726095973815,1.15492491,57570.0,57569.0,0.000638]
[1726095974292,0.80752191,57570.0,57569.0,0.000638]
[1726095974519,0.75552783,57570.0,57569.0,0.000638]
[1726095974748,1.10293083,57570.0,57569.0,0.000638]
[1726095975690,0.75552783,57570.0,57569.0,0.000638]
[1726095976370,1.28697894,57570.0,57569.0,0.000638]
[1726095976619,1.8410577,57570.0,57569.0,0.000638]
[1726095976860,1.9177577,57570.0,57569.0,0.000638]
[1726095977099,1.9077577,57570.0,57569.0,0.000638]
[1726095977323,2.01750647,57570.0,57569.0,0.000638]
[1726095977553,1.89113246,57570.0,57569.0,0.000638]
[1726095977781,1.91365206,57570.0,57569.0,0.000638]
[1726095978231,1.99490967,57570.0,57569.0,0.000638]
[1726095978468,2.01730904,57570.0,57569.0,0.000638]
[1726095978929,2.01630904,57570.0,57569.0,0.000638]
[1726095979463,1.91718874,57570.0,57569.0,0.000638]
[1726095979952,0.173743,57556.0,57555.0,0.0606]
[1726095980439,0.173743,57556.0,57555.0,0.02725305]
[1726095980703,0.173746,57555.0,57552.0,0.0645]
[1726095980931,0.173742,57557.0,57555.0,0.02725305]
[1726095981158,0.54931205,57559.0,57552.0,0.238253]
[1726095981159,0.173743,57556.0,57552.0,0.238253]
[1726095981603,0.173747,57555.0,57553.0,0.02725556]
[1726095981870,0.173743,57556.0,57553.0,0.02725556]
[1726095982108,0.173749,57555.0,57553.0,0.02725556]
[1726095983044,0.174749,57555.0,57553.0,0.05325556]
[1726095983483,0.174749,57555.0,57553.0,0.04125556]
[1726095983914,0.175749,57555.0,57553.0,0.05425556]
[1726095984592,0.022453,57554.0,57553.0,0.05425556]
[1726095985479,0.19621403,57554.0,57553.0,0.04125556]
[1726095985753,0.19621403,57554.0,57553.0,0.02725556]
[1726095985960,0.89221203,57554.0,57553.0,0.04125556]
[1726095986174,0.89321203,57554.0,57553.0,0.05525556]
[1726095986393,0.89321203,57554.0,57553.0,0.028]
[1726095986843,0.89221203,57554.0,57553.0,0.014]
[1726095987100,0.868762,57553.0,57552.0,0.0645]
[1726095987320,0.89122703,57553.0,57552.0,0.0645]
[1726095987535,0.54372203,57553.0,57552.0,0.0645]
[1726095987983,0.54372203,57553.0,57552.0,0.0917686]
[1726095988202,0.54372203,57553.0,57552.0,0.0645]
[1726095988858,0.521257,57553.0,57552.0,0.0675]
[1726095989064,0.54360943,57553.0,57552.0,0.0675]
[1726095989283,0.54360943,57553.0,57552.0,0.0947686]
[1726095989740,0.54360943,57553.0,57552.0,0.0977686]
[1726095990135,0.54364361,57553.0,57552.0,0.0977686]
[1726095991120,0.54364361,57553.0,57552.0,0.0705]
[1726095991342,0.54364361,57553.0,57552.0,0.09778145]
[1726095994956,0.19613861,57553.0,57552.0,0.09778145]
[1726095995178,0.54364361,57553.0,57552.0,0.09778145]
[1726095995405,0.54364361,57553.0,57552.0,0.09941945]
[1726095995846,0.54365997,57553.0,57552.0,0.09941945]
[1726095998090,0.02240297,57553.0,57552.0,0.27317445]
[1726096000156,0.02240297,57553.0,57552.0,0.09941945]
[1726096000821,0.02231048,57553.0,57552.0,0.27317445]
[1726096002811,0.173744,57556.0,57552.0,0.27317445]
[1726096003045,0.0223134,57553.0,57552.0,0.27317445]
[1726096003734,0.0223134,57553.0,57552.0,0.09941945]
[1726096004412,0.0223134,57553.0,57552.0,0.09641945]
[1726096004634,0.0223134,57553.0,57552.0,0.09341945]